Cogmind - Beta 11.1 *** ADVENTURER MODE // 2022.08.21 @ 07:01:56 Player: Crimson_Fox Result: Self-destructed Performance ------------- Evolutions (1) 500 Regions Visited (3) 600 Robots Destroyed (22) 110 Value Destroyed (488) 488 Prototype IDs (5) 100 Alien Tech Used (0) 0 Bonus (0) 0 TOTAL SCORE: 1798 Bonus ------- None Cogmind --------- Core Integrity 400/400 Matter 270/300 Energy 99/100 System Corruption 1% Temperature Cool (0) Movement Walking (120) Location -9/Materials Parts ------- > --- POWER (1) -------- (None) > --- PROPULSION (4) --- Aluminum Leg Aluminum Leg Aluminum Leg Aluminum Leg > --- UTILITY (2) ------ Small Storage Unit Core Shielding > --- WEAPON (2) ------- Beam Cannon Beam Cannon > --- INVENTORY (8) ---- Ion Engine Improved Heat Sink Structural Scanner Signal Interpreter Core Shielding Propulsion Shielding Thief Drone Bay (3/3) Hammer Peak State ------------ > --- POWER ------------ Light Nuclear Core > --- PROPULSION ------- Aluminum Leg Aluminum Leg > --- UTILITY ---------- Small Storage Unit Thief Drone Bay > --- WEAPON ----------- Beam Cannon Beam Cannon > --- INVENTORY -------- Ion Engine Aluminum Leg Improved Heat Sink Structural Scanner Signal Interpreter Propulsion Shielding Mining Laser Hammer [Rating: 16] Favorites ----------- Power Light Nuclear Core Engine Ion Engine Power Core Light Nuclear Core Propulsion Aluminum Leg Leg Aluminum Leg Wheel Wheel Utility Small Storage Unit Device Thief Drone Bay Storage Small Storage Unit Protection Propulsion Shielding Weapon Beam Cannon Energy Cannon Beam Cannon Ballistic Gun Assault Rifle Build | -11 -10 -10 -9 ------- Run | Scr Mat Min Mat Slots Evolved 2 | . . . 2 Power . | . . . . Propulsion 2 | . . . 2 Utility . | . . . . Weapon . | . . . . Parts Attached 23 | 6 5 9 3 Power 2 | 1 . 1 . Engine 1 | 1 . . . Core 1 | . . 1 . Reactor . | . . . . Propulsion 10 | 2 2 4 2 Treads . | . . . . Leg 8 | . 2 4 2 Wheel 2 | 2 . . . Hover . | . . . . Flight . | . . . . Utility 7 | 1 2 3 1 Device 1 | . . 1 . Storage 1 | 1 . . . Processor . | . . . . Hackware . | . . . . Protection 5 | . 2 2 1 Artifact . | . . . . Weapon 4 | 2 1 1 . Energy Gun . | . . . . Energy Cannon 2 | . 1 1 . Ballistic Gun 2 | 2 . . . Ballistic Cannon . | . . . . Launcher . | . . . . Special Weapon . | . . . . Impact Weapon . | . . . . Slashing Weapon . | . . . . Piercing Weapon . | . . . . Special Melee Weapon . | . . . . Unidentified Prototypes 1 | . . 1 . Parts Lost 1 | . . 1 . Power . | . . . . Propulsion . | . . . . Utility . | . . . . Weapon 1 | . . 1 . Highest Loss Streak 1 | . . 1 . To Critical Strikes . | . . . . Average Slot Usage (%) 98 | . 93 99 98 Engine 5 | . 14 2 . Core 8 | . . 11 9 Leg 25 | . 14 28 44 Wheel 3 | . 13 . . Storage 13 | . 14 14 11 Protection 12 | . 7 13 11 Energy Cannon 17 | . 7 20 22 Ballistic Gun 9 | . 20 7 . Naked Turns . | . . . . Heaviest Build 20 | 13 16 20 17 Greatest Support 40 | 26 26 20 40 Greatest Overweight (x) . | . . . . Average Overweight (x) . | . . . . Largest Inventory Capacity 8 | 8 8 8 8 Average Capacity 7 | 6 8 8 8 Most Carried 8 | 8 8 8 8 Average Carried 7 | 4 7 7 7 Final Capacity 8 | 8 8 8 8 Final Carried 8 | 6 8 8 8 Class Distribution -------------------- 92% | Mutant 7% | Scavenger-Mutant Dominant Class ---------------- Mutant | -10/Materials Mutant | -10/Mines Scavenger-Mutant | -9/Materials Resources | -11 -10 -10 -9 ----------- Run | Scr Mat Min Mat Matter Collected 521 | 260 113 148 . Remotely . | . . . . Salvage Created 617 | . 170 447 . Parts 44 | . 23 21 . Haulers Intercepted . | . . . . Recyclers Shooed . | . . . . Parts Field Recycled . | . . . . Retrieved Matter . | . . . . Parts Self-Destructed . | . . . . Prevented . | . . . . Kills | -11 -10 -10 -9 ------- Run | Scr Mat Min Mat Combat Hostiles Destroyed 18 | . 7 11 . Guns 8 | . 5 3 . Cannons 10 | . 2 8 . Classes Destroyed 5 | . 4 1 . Worker 1 | . 1 . . Tunneler 1 | . . 1 . Watcher 2 | . 2 . . Swarmer 9 | . 6 3 . Grunt 9 | . 1 8 . Best Kill Streak 4 | . 4 3 . Combat Bots Only 3 | . 3 3 . Max Kills in Single Turn 2 | . 2 1 . Gunslinging . | . . . . Exploded . | . . . . Melee . | . . . . Uniques/NPCs Destroyed . | . . . . Combat | -11 -10 -10 -9 -------- Run | Scr Mat Min Mat Damage Taken 599 | . 164 382 53 Core 133 | . 30 103 . Absorbed by Shields . | . . . . Redirected to Shielding 33 | . 5 28 . Core Remaining (%) 73 | 100 . 46 . Volleys Fired 48 | . 18 30 . Largest 2 | . 2 2 . Hottest 120 | . 80 120 . Shots Fired 92 | . 36 56 . Gun 48 | . 27 21 . Cannon 44 | . 9 35 . Launcher . | . . . . Special . | . . . . Kinetic 48 | . 27 21 . Thermal 44 | . 9 35 . Explosive . | . . . . Electromagnetic . | . . . . Robot Hit Streak 18 | . 8 18 . Robot Miss Streak 1 | . 1 1 . Penetration Max . | . . . . Secondary Targets 2 | . 2 . . Max Gunslinging Chain 1 | . 1 . . Shots Hit Robots 69 | . 24 45 . Core Hits 32 | . 13 19 . Critical Kills . | . . . . Critical Parts Destroyed . | . . . . Critical Strikes . | . . . . Melee Attacks . | . . . . Impact . | . . . . Slashing . | . . . . Piercing . | . . . . Sneak Attacks . | . . . . Combat Hostiles . | . . . . Follow-up Attacks . | . . . . Damage Inflicted 1064 | . 316 748 . Guns 428 | . 212 216 . Cannons 632 | . 104 528 . Explosions . | . . . . Melee . | . . . . Ramming 4 | . . 4 . Kinetic 428 | . 212 216 . Thermal 632 | . 104 528 . Explosive . | . . . . Electromagnetic . | . . . . Impact . | . . . . Slashing . | . . . . Piercing . | . . . . Highest Corruption 1 | . . . 1 Average Corruption 1 | . . . 1 Corruption Purged . | . . . . Corruption Blocked . | . . . . Overload Shots . | . . . . Overflow Damage . | . . . . Projectiles . | . . . . Explosions . | . . . . Melee . | . . . . Knockbacks . | . . . . Impact . | . . . . Kinetic . | . . . . Secondary . | . . . . Self-Inflicted Damage . | . . . . Shots . | . . . . Rammed . | . . . . Targets Rammed 2 | . . 2 . Kicked 2 | . . 2 . Crushed . | . . . . Highest Temperature 352 | . 72 352 . Average Temperature 100 | . 41 114 . Received Heat Transfer 252 | . . 252 . Effects 1 | . . 1 . Shutdowns 1 | . . 1 . Siege Activations . | . . . . Robots Corrupted . | . . . . Combat Hostiles . | . . . . Parts Fried . | . . . . Impact Corruptions . | . . . . Robots Melted . | . . . . Combat Hostiles . | . . . . Parts Melted 6 | . . 6 . Heat Transferred 1332 | . 222 1110 . Parts Sabotaged . | . . . . Parts Stolen . | . . . . Parts Stripped . | . . . . Power Chain Reactions . | . . . . Missiles Intercepted . | . . . . Alert | -11 -10 -10 -9 ------- Run | Scr Mat Min Mat Peak Influence 228 | . 228 174 . Initial 74 | . . 74 . Average 96 | . 141 94 . Maximum Alert Level 1 | . 1 . . Low Security (%) 91 | 100 61 100 100 Level 1 8 | . 38 . . Level 2 . | . . . . Level 3 . | . . . . Level 4 . | . . . . Level 5 . | . . . . High Security . | . . . . Max Security . | . . . . Squads Dispatched . | . . . . Investigation . | . . . . Extermination . | . . . . Reinforcement . | . . . . Assault . | . . . . Garrison . | . . . . Intercept . | . . . . Searches Triggered . | . . . . Construction Impeded . | . . . . Haulers Reinforced . | . . . . Active Scanning Responses . | . . . . Cargo Convoy Interrupts . | . . . . Stealth | -11 -10 -10 -9 --------- Run | Scr Mat Min Mat Distress Signals 3 | . 3 . . Communications Jammed . | . . . . Distress Signals . | . . . . Times Spotted 23 | . 12 10 1 Peak Tracking Total 4 | . 4 3 3 Tactical Retreats 1 | . 1 . . Traps | -11 -10 -10 -9 ------- Run | Scr Mat Min Mat Traps Triggered 3 | . . . 3 Indirectly . | . . . . Trap Hack Attempts . | . . . . Triggered . | . . . . Disarmed . | . . . . Reprogrammed . | . . . . Reused . | . . . . Traps Extracted . | . . . . Installed . | . . . . Triggered . | . . . . Machines | -11 -10 -10 -9 ---------- Run | Scr Mat Min Mat Machines Disabled . | . . . . Max in Single Turn . | . . . . Machines Sabotaged . | . . . . Garrisons Compromised . | . . . . Overloaded Fab Kills . | . . . . Hacking | -11 -10 -10 -9 --------- Run | Scr Mat Min Mat Machines Accessed 8 | . 6 1 1 Terminals 7 | . 6 . 1 Fabricators . | . . . . Repair Stations . | . . . . Recycling Units . | . . . . Scanalyzers . | . . . . Garrison Access . | . . . . Total Hacks 18 | . 15 1 2 Successful 7 | . 6 1 . Failed 11 | . 9 . 2 Catastrophic 4 | . 3 . 1 Database Lockouts . | . . . . Manual 10 | . 8 . 2 Terminals 17 | . 15 . 2 Fabricators . | . . . . Repair Stations . | . . . . Recycling Units . | . . . . Scanalyzers . | . . . . Garrison Access . | . . . . Terminal Hacks 7 | . 6 1 . Prototype ID Bank 3 | . 3 . . Open Door 1 | . . 1 . Branch Access Points 1 | . 1 . . Terminal Index 1 | . 1 . . Locate Traps 1 | . 1 . . Fabricator Hacks . | . . . . Repair Station Hacks . | . . . . Recycling Unit Hacks . | . . . . Scanalyzer . | . . . . Garrison Access Hacks . | . . . . Unauthorized Hacks . | . . . . Terminals . | . . . . Fabricators . | . . . . Repair Stations . | . . . . Recycling Units . | . . . . Scanalyzers . | . . . . Garrison Access . | . . . . Data Cores Recovered . | . . . . Used . | . . . . Hacking Detections 7 | . 6 . 1 Full Trace Events . | . . . . Feedback Events . | . . . . Feedback Blocked . | . . . . Robot Schematics Acquired . | . . . . Robots Built . | . . . . Authchips . | . . . . Time . | . . . . Total Robot Build Rating . | . . . . Part Schematics Acquired . | . . . . Parts Built . | . . . . Authchips . | . . . . Time . | . . . . Total Part Build Rating . | . . . . Parts Repaired . | . . . . Time . | . . . . Parts Recycled . | . . . . Recycled Matter . | . . . . Retrieved Matter . | . . . . Retrieved Components . | . . . . Parts Scanalyzed . | . . . . Part Schematics Acquired . | . . . . Parts Damaged . | . . . . Bothacking | -11 -10 -10 -9 ------------ Run | Scr Mat Min Mat Used RIF Installer . | . . . . Robots Hacked . | . . . . Non-combat . | . . . . Combat . | . . . . Robot Hacks Applied . | . . . . Relay Couplers Released . | . . . . Fabnet Peak Effective % . | . . . . Robots Rewired . | . . . . Allies Hacked . | . . . . Hacks Repelled . | . . . . Allies | -11 -10 -10 -9 -------- Run | Scr Mat Min Mat Total Allies . | . . . . Largest Group . | . . . . Highest-Rated Group . | . . . . Highest-Rated Ally . | . . . . Total Orders 2 | . . 2 . EXPLORE 1 | . . 1 . RETURN 1 | . . 1 . Ally Attacks . | . . . . Total Damage . | . . . . Kills . | . . . . Allies Corrupted . | . . . . Allies Melted . | . . . . Intel | -11 -10 -10 -9 ------- Run | Scr Mat Min Mat Robot Analysis Total . | . . . . Derelict Logs Recovered 1 | . . 1 . Drone Launches 1 | . . 1 . Drone Recoveries 1 | . . 1 . Exploration | -11 -10 -10 -9 ------------- Run | Scr Mat Min Mat Turns Passed 1421 | 47 332 948 94 Spaces Moved 985 | 36 200 676 73 Core 8 | 8 . . . Treads . | . . . . Legs 864 | . 115 676 73 Wheels 113 | 28 85 . . Hover . | . . . . Flight . | . . . . Fastest Speed 50 | 50 90 120 120 Average Speed 115 | 81 107 120 120 Slowest Speed 120 | 90 120 120 120 Overloaded Moves . | . . . . Propulsion Burnouts . | . . . . Robots Hopped . | . . . . Cave-ins Triggered . | . . . . Exploration Rate (%) 39 | 4 45 99 11 Regions Visited 3 Branch Regions 1 Pre-discovered Areas 1 | . . 1 . Known Exits Taken 1 | . 1 . . Unknown Exits Taken 2 | 1 . 1 . Scrap Searched 1 | . . 1 . Spaces Dug . | . . . . Terrain Destroyed . | . . . . Melee . | . . . . Projectile . | . . . . AOE . | . . . . Terrain Rammed . | . . . . Walls Destroyed . | . . . . Machines Disabled . | . . . . Actions | -11 -10 -10 -9 --------- Run | Scr Mat Min Mat Total 1175 | 53 285 759 78 Wait 76 | . 44 32 . Move 982 | 35 199 675 73 Hop . | . . . . Pick Up 27 | 12 10 3 2 Fast Attach 4 | . 2 2 . Attach 11 | 6 1 2 2 Detach . | . . . . Swap 8 | . 2 5 1 Drop 17 | . 9 8 . Fire 48 | . 18 30 . Melee . | . . . . Ram . | . . . . Kick 2 | . . 2 . Crush . | . . . . Escape Stasis . | . . . . Rewire . | . . . . Trap . | . . . . Miscellaneous . | . . . . Route ------- -11/Scrapyard -10/Materials (discovered 3 exits: *Mat / *Min x2) -10/Mines (discovered 2 exits: *Mat x2) -9/Materials History --------- Turn | Location | Event 15 | -11/Scrapyard | Discovered new exit (range 15) 48 | -11/Scrapyard | Entered Materials 291 | -10/Materials | Discovered new exit (range 9) 303 | -10/Materials | Build established: Mutant 313 | -10/Materials | Identified exit to Mines 380 | -10/Materials | Entered Mines 455 | -10/Mines | Discovered new exit (range 15) 601 | -10/Mines | Discovered new exit (range 9) 614 | -10/Mines | Learned location of Storage (-7) 980 | -10/Mines | Learned Materials terminal intel 1007 | -10/Mines | Found the Drone Emporium 1014 | -10/Mines | Found Prototype Device 1014 | -10/Mines | Identified Thief Drone Bay 1029 | -10/Mines | Core integrity fell below 50% 1328 | -10/Mines | Entered Materials 1328 | -9/Materials | Evolved 2 slots: Propulsion x2 1329 | -9/Materials | Loaded intel: 12 terminal locations 1422 | -9/Materials | Self-destructed Last Messages --------------- Loading Materials terminal intel (x12)... Acquired Core Shielding. T-07 Excavator is excavating. Connecting with Terminal... Current location identified: Materials T-07 Excavator is excavating. Triggered EMP Trap. A bubble of electromagnetic force engulfs the area. EMP Trap short circuited. A bubble of electromagnetic force engulfs the area. Blade Trap short circuited. Massive razor-sharp blades shoot up from within the floor. Triggered Blade Trap. Massive razor-sharp blades shoot up from within the floor. Lgt. Nuclear Core severed. U-05 Engineer lays Concrete. Triggered EMP Trap. A bubble of electromagnetic force engulfs the area. Chain reaction triggered in Corrupted Lgt. Nuclear Core. U-05 Engineer destroyed. Map ----- +----------------------------------------------------+ | ??????????????????????????????# # # | | ??????????????????????????????# # # | | ??????????????################# + # | | ????????????? # """ # | | ????????????? # """ # | | ????????????? # """ # | | ???????????????????#+######+### # # | | ?????????????????????????# # # # | | ?????????????????????????# # ####### | | ?????????????????????????# # #?????? | | ?????????????????????????# # #?????? | | ?????????????????????????# # #?????? | | ?????????????????????????# # #?????? | | ?????????????????????????# ### #?????? | | ?????????????????????????# #?# ####??? | | ?????????????????????????# #?# #??? | | ????"????????????????????######?#### #??? | | ????T??????????????????????????????# #??? | | ????"????????????????????????????### ###? | | ????????????????????????????###### #? | | ????????????????????????????# T #? | | ????????????????????????????# "" =#? | | ????????????????????????##### t #? | | ?????????????????## ##### ;; #### #? | | ?????????????????# |%! #??### ###? | | ?????????? @! #???? #?? | | ?????????? w ###; ; #????####?? | | ?????????????######???????# # #?????????? | | ???????????????????????????## #?????????? | | ????????????????????????????# #########?? | | ????????????????????????????# #?? | | ????????????????????????????# #?? | | ????????????????????????????# """ #?? | | ????????????????????????????# """ ""# | | ????????????????????????????# """ T"# | | ????????????????????????????# ""# | | ????????????????????????????# ### | | ????????????????????????????# #?? | | ????????????????????????????# ==[#?? | | ????????????????????????????# =[[#?? | | ????????????????????????????# =[[#?? | | ????????????????????????????# ! #?? | | ????????????????????????????# #?? | | ????????????????????????????? *#?? | | ???????????????????????????"" #?? | | ???????????????????????????"" #?? | | ???????????????????????????"T??=== #?? | | ???????????????????????????""???== ???? | | ???????????????????????????""???????????? | | ????????????????????????????????????????? | +----------------------------------------------------+ Best States ------------- Heat Dissipation 28 Energy Generation 14 Energy Capacity 250 Matter Stores 300 Matter Capacity 300 Sight Range 16 Terrain Scan Density 10 Resistance: KI 20 Resistance: TH 20 Resistance: EX 20 Resistance: EM 20 Resistance: I 20 Resistance: S 20 Resistance: P 20 Core Shielding 20 Propulsion Shielding 33 Evasion (%) 55 Offensive Hacking 10 Item Schematics ----------------- None Robot Schematics ------------------ None Fabricated ------------ Nothing Alien Tech Used ----------------- None Achievements -------------- None Challenges ------------ None Game ------ Seed BattleReactiveBarrier Manual? 0 Play Time 00:20:04 Cumulative 26.1 hours Start 2022.08.21 @ 06:42:09 End 2022.08.21 @ 07:01:56 Sessions 1 Manual Loads 0 Difficulty Adventurer Special Mode None Game No. 18 Rogue 11 Adventurer 7 Explorer 0 Win Type - Total 1 Types 1/0/0/0/0/0/0/0/0 Lore% 30 Gallery% 35 Achievement% 32 Wizard Run 0 Options --------- ASCII 0 Keyboard 0 Movement Mouse Keybinds 0 Fullscreen 1 Font 24/Smallcaps Map View 113x50 Tactical HUD 0 Map Filters NONE Filters NONE Steam 1 RUN: c634eaed-8f4e-4a78-8524-f38d9cb03752